[Event "Titled Tuesday Blitz August 09 Late 2022"]
[White "Babazada, Khazar"]
[Black "Naroditsky, Daniel"]
[WhiteFideId "13413554"]
[BlackFideId "2026961"]
[WhiteElo "2409"]
[BlackElo "2628"]
[Result "1/2-1/2"]
[Round "04"]
[TimeControl "180+1"]
[Date "2022.08.09"]
[WhiteClock "0:02:44"]
[BlackClock "0:02:08"]

1. e4 {[%clk 0:03:00]}  c6 {[%clk 0:02:55]} 2. d4 {[%clk 0:03:00]}  d5 {[%clk 0:02:55]} 3. Nc3 {[%clk 0:03:00]}  g6 {[%clk 0:02:52]} 4. Nf3 {[%clk 0:02:55]}  Bg7 {[%clk 0:02:51]} 5. h3 {[%clk 0:02:55]}  dxe4 {[%clk 0:02:48]} 6. Nxe4 {[%clk 0:02:56]}  Nf6 {[%clk 0:02:46]} 7. Nxf6+ {[%clk 0:02:57]}  exf6 {[%clk 0:02:47]} 8. Bc4 {[%clk 0:02:57]}  O-O {[%clk 0:02:45]} 9. O-O {[%clk 0:02:58]}  Nd7 {[%clk 0:02:46]} 10. c3 {[%clk 0:02:57]}  b5 {[%clk 0:02:45]} 11. Bb3 {[%clk 0:02:57]}  Nb6 {[%clk 0:02:46]} 12. Bf4 {[%clk 0:02:55]}  Nd5 {[%clk 0:02:42]} 13. Bh2 {[%clk 0:02:55]}  Be6 {[%clk 0:02:42]} 14. Re1 {[%clk 0:02:55]}  Qd7 {[%clk 0:02:41]} 15. Nd2 {[%clk 0:02:55]}  f5 {[%clk 0:02:35]} 16. Nf3 {[%clk 0:02:49]}  f6 {[%clk 0:02:25]} 17. Re2 {[%clk 0:02:48]}  Rfe8 {[%clk 0:02:24]} 18. Ne1 {[%clk 0:02:49]}  Bf7 {[%clk 0:02:19]} 19. Nd3 {[%clk 0:02:49]}  Rxe2 {[%clk 0:02:20]} 20. Qxe2 {[%clk 0:02:49]}  Re8 {[%clk 0:02:21]} 21. Qf1 {[%clk 0:02:48]}  Bh6 {[%clk 0:02:10]} 22. Re1 {[%clk 0:02:45]}  Re7 {[%clk 0:02:08]} 23. Nc5 {[%clk 0:02:45]}  Qe8 {[%clk 0:02:07]} 24. Rxe7 {[%clk 0:02:43]}  Qxe7 {[%clk 0:02:08]} 25. a4 {[%clk 0:02:44]} 1/2-1/2


[Site "https://www.chess.com"]

[Event "Titled Tuesday Blitz August 09 Late 2022"]
[White "Bartholomew, John"]
[Black "Lorenzo De La Riva, Lazaro"]
[WhiteFideId "2019353"]
[BlackFideId "2268809"]
[WhiteElo "2757"]
[BlackElo "2325"]
[Result "1-0"]
[Round "04"]
[TimeControl "180+1"]
[Date "2022.08.09"]
[WhiteClock "0:00:21"]
[BlackClock "0:00:12"]

1. d4 {[%clk 0:03:00]}  Nf6 {[%clk 0:02:56]} 2. c4 {[%clk 0:02:59]}  e6 {[%clk 0:02:55]} 3. Nf3 {[%clk 0:02:58]}  b6 {[%clk 0:02:54]} 4. g3 {[%clk 0:02:57]}  Ba6 {[%clk 0:02:53]} 5. Qa4 {[%clk 0:02:56]}  Bb7 {[%clk 0:02:51]} 6. Bg2 {[%clk 0:02:56]}  c5 {[%clk 0:02:50]} 7. dxc5 {[%clk 0:02:53]}  bxc5 {[%clk 0:02:48]} 8. O-O {[%clk 0:02:52]}  Be7 {[%clk 0:02:28]} 9. Nc3 {[%clk 0:02:52]}  O-O {[%clk 0:02:26]} 10. Bf4 {[%clk 0:02:49]}  d6 {[%clk 0:02:22]} 11. Rfd1 {[%clk 0:02:44]}  Qb6 {[%clk 0:02:22]} 12. Qb3 {[%clk 0:02:40]}  Rd8 {[%clk 0:01:58]} 13. Rd2 {[%clk 0:02:29]}  Nc6 {[%clk 0:01:52]} 14. Rad1 {[%clk 0:02:11]}  e5 {[%clk 0:01:51]} 15. Bg5 {[%clk 0:02:06]}  Qxb3 {[%clk 0:01:45]} 16. axb3 {[%clk 0:02:05]}  Na5 {[%clk 0:01:27]} 17. Bxf6 {[%clk 0:01:48]}  gxf6 {[%clk 0:01:27]} 18. Nh4 {[%clk 0:00:59]}  Bxg2 {[%clk 0:01:24]} 19. Kxg2 {[%clk 0:01:00]}  Nxb3 {[%clk 0:01:22]} 20. Rd3 {[%clk 0:01:00]}  Bf8 {[%clk 0:01:03]} 21. Nd5 {[%clk 0:00:55]}  Nd4 {[%clk 0:01:02]} 22. e3 {[%clk 0:00:53]}  Nc6 {[%clk 0:00:29]} 23. Nxf6+ {[%clk 0:00:52]}  Kg7 {[%clk 0:00:24]} 24. Ne4 {[%clk 0:00:50]}  Rab8 {[%clk 0:00:22]} 25. Nxd6 {[%clk 0:00:43]}  Bxd6 {[%clk 0:00:20]} 26. Rxd6 {[%clk 0:00:42]}  Rxd6 {[%clk 0:00:19]} 27. Rxd6 {[%clk 0:00:43]}  Na5 {[%clk 0:00:19]} 28. Nf5+ {[%clk 0:00:42]}  Kg8 {[%clk 0:00:18]} 29. Rd5 {[%clk 0:00:31]}  Nxc4 {[%clk 0:00:18]} 30. Rxc5 {[%clk 0:00:32]}  Nxb2 {[%clk 0:00:18]} 31. Rxe5 {[%clk 0:00:32]}  f6 {[%clk 0:00:17]} 32. Ra5 {[%clk 0:00:26]}  Ra8 {[%clk 0:00:16]} 33. Ra6 {[%clk 0:00:25]}  Kf7 {[%clk 0:00:14]} 34. Nd6+ {[%clk 0:00:25]}  Ke7 {[%clk 0:00:13]} 35. Nb5 {[%clk 0:00:26]}  Nc4 {[%clk 0:00:13]} 36. Rxa7+ {[%clk 0:00:25]}  Rxa7 {[%clk 0:00:13]} 37. Nxa7 {[%clk 0:00:25]}  Kd6 {[%clk 0:00:13]} 38. Nb5+ {[%clk 0:00:25]}  Kd5 {[%clk 0:00:13]} 39. Nc3+ {[%clk 0:00:24]}  Ke5 {[%clk 0:00:13]} 40. f4+ {[%clk 0:00:24]}  Kf5 {[%clk 0:00:14]} 41. Kf3 {[%clk 0:00:23]}  Nd2+ {[%clk 0:00:14]} 42. Ke2 {[%clk 0:00:24]}  Nc4 {[%clk 0:00:14]} 43. h3 {[%clk 0:00:22]}  h5 {[%clk 0:00:15]} 44. e4+ {[%clk 0:00:20]}  Kg6 {[%clk 0:00:14]} 45. Kd3 {[%clk 0:00:19]}  Nd6 {[%clk 0:00:14]} 46. Nd5 {[%clk 0:00:18]}  Nf7 {[%clk 0:00:14]} 47. Ne7+ {[%clk 0:00:18]}  Kg7 {[%clk 0:00:13]} 48. Kd4 {[%clk 0:00:18]}  Nd6 {[%clk 0:00:12]} 49. Nf5+ {[%clk 0:00:18]}  Nxf5+ {[%clk 0:00:12]} 50. exf5 {[%clk 0:00:19]}  Kf7 {[%clk 0:00:12]} 51. Kd5 {[%clk 0:00:20]}  Ke7 {[%clk 0:00:12]} 52. Kc6 {[%clk 0:00:20]}  h4 {[%clk 0:00:12]} 53. gxh4 {[%clk 0:00:20]}  Kf7 {[%clk 0:00:12]} 54. Kd7 {[%clk 0:00:20]}  Kg7 {[%clk 0:00:12]} 55. Ke6 {[%clk 0:00:21]} 1-0


[Site "https://www.chess.com"]

[Event "Titled Tuesday Blitz August 09 Late 2022"]
[White "Bilych, Olexiy"]
[Black "Toncheva, Nadya"]
[WhiteFideId "14156504"]
[BlackFideId "2924056"]
[WhiteElo "2157"]
[BlackElo "1888"]
[Result "1-0"]
[Round "04"]
[TimeControl "180+1"]
[Date "2022.08.09"]
[WhiteClock "0:00:22"]
[BlackClock "0:00:05"]

1. e4 {[%clk 0:02:58]}  c5 {[%clk 0:02:59]} 2. Nf3 {[%clk 0:02:58]}  d6 {[%clk 0:02:59]} 3. d4 {[%clk 0:02:58]}  cxd4 {[%clk 0:03:00]} 4. Nxd4 {[%clk 0:02:59]}  Nf6 {[%clk 0:03:00]} 5. Nc3 {[%clk 0:03:00]}  Nc6 {[%clk 0:03:00]} 6. Bg5 {[%clk 0:03:00]}  e6 {[%clk 0:03:00]} 7. Qd3 {[%clk 0:02:54]}  a6 {[%clk 0:03:00]} 8. O-O-O {[%clk 0:02:54]}  Bd7 {[%clk 0:02:58]} 9. Qg3 {[%clk 0:02:40]}  Rc8 {[%clk 0:02:51]} 10. Nxc6 {[%clk 0:02:38]}  Rxc6 {[%clk 0:02:41]} 11. Be2 {[%clk 0:02:16]}  Qa5 {[%clk 0:02:37]} 12. Bd2 {[%clk 0:02:06]}  b5 {[%clk 0:01:52]} 13. a3 {[%clk 0:01:25]}  b4 {[%clk 0:01:48]} 14. Na2 {[%clk 0:01:11]}  Nxe4 {[%clk 0:01:46]} 15. Qe3 {[%clk 0:01:10]}  Nxd2 {[%clk 0:01:35]} 16. Qxd2 {[%clk 0:01:10]}  d5 {[%clk 0:01:30]} 17. Nxb4 {[%clk 0:01:11]}  Rb6 {[%clk 0:01:06]} 18. Qd4 {[%clk 0:01:05]}  Bxb4 {[%clk 0:00:42]} 19. axb4 {[%clk 0:01:05]}  Rxb4 {[%clk 0:00:37]} 20. Qxg7 {[%clk 0:01:03]}  Qa1+ {[%clk 0:00:23]} 21. Kd2 {[%clk 0:00:59]}  Qxb2 {[%clk 0:00:24]} 22. Qxb2 {[%clk 0:00:55]}  Rxb2 {[%clk 0:00:24]} 23. Rb1 {[%clk 0:00:54]}  Rxb1 {[%clk 0:00:18]} 24. Rxb1 {[%clk 0:00:55]}  Ke7 {[%clk 0:00:19]} 25. Bxa6 {[%clk 0:00:54]}  Ra8 {[%clk 0:00:18]} 26. Bd3 {[%clk 0:00:54]}  Kd6 {[%clk 0:00:18]} 27. h4 {[%clk 0:00:44]}  h6 {[%clk 0:00:18]} 28. Rb6+ {[%clk 0:00:39]}  Kc5 {[%clk 0:00:16]} 29. Rb7 {[%clk 0:00:38]}  Kc6 {[%clk 0:00:17]} 30. Rb4 {[%clk 0:00:39]}  Kc5 {[%clk 0:00:16]} 31. Rg4 {[%clk 0:00:38]}  Ra1 {[%clk 0:00:14]} 32. Rg7 {[%clk 0:00:38]}  Be8 {[%clk 0:00:12]} 33. Rg8 {[%clk 0:00:38]}  Bd7 {[%clk 0:00:11]} 34. Rf8 {[%clk 0:00:36]}  f5 {[%clk 0:00:10]} 35. Rf6 {[%clk 0:00:36]}  Kd4 {[%clk 0:00:09]} 36. Rxh6 {[%clk 0:00:24]}  e5 {[%clk 0:00:07]} 37. Rd6 {[%clk 0:00:23]}  Bc8 {[%clk 0:00:06]} 38. Rc6 {[%clk 0:00:23]}  e4 {[%clk 0:00:05]} 39. Rxc8 {[%clk 0:00:17]}  exd3 {[%clk 0:00:05]} 40. c3+ {[%clk 0:00:17]}  Ke4 {[%clk 0:00:04]} 41. Re8+ {[%clk 0:00:18]}  Kf4 {[%clk 0:00:04]} 42. Kxd3 {[%clk 0:00:18]}  Rf1 {[%clk 0:00:03]} 43. Ke2 {[%clk 0:00:18]}  Rc1 {[%clk 0:00:03]} 44. Re3 {[%clk 0:00:17]}  Rc2+ {[%clk 0:00:03]} 45. Ke1 {[%clk 0:00:16]}  Rc1+ {[%clk 0:00:03]} 46. Kd2 {[%clk 0:00:17]}  Rf1 {[%clk 0:00:03]} 47. Ke2 {[%clk 0:00:17]}  Rc1 {[%clk 0:00:04]} 48. g3+ {[%clk 0:00:17]}  Kg4 {[%clk 0:00:04]} 49. Rd3 {[%clk 0:00:18]}  Rc2+ {[%clk 0:00:04]} 50. Kf1 {[%clk 0:00:18]}  Rc1+ {[%clk 0:00:04]} 51. Kg2 {[%clk 0:00:18]}  Rc2 {[%clk 0:00:05]} 52. Rd4+ {[%clk 0:00:17]}  Kh5 {[%clk 0:00:05]} 53. Rxd5 {[%clk 0:00:18]}  Kg4 {[%clk 0:00:05]} 54. Rd4+ {[%clk 0:00:16]}  Kh5 {[%clk 0:00:06]} 55. Rf4 {[%clk 0:00:17]}  Rxc3 {[%clk 0:00:05]} 56. Rxf5+ {[%clk 0:00:17]}  Kg6 {[%clk 0:00:06]} 57. Rf4 {[%clk 0:00:17]}  Rc5 {[%clk 0:00:06]} 58. Kh3 {[%clk 0:00:18]}  Ra5 {[%clk 0:00:07]} 59. Kg4 {[%clk 0:00:18]}  Kh6 {[%clk 0:00:07]} 60. f3 {[%clk 0:00:17]}  Kg6 {[%clk 0:00:08]} 61. Rc4 {[%clk 0:00:17]}  Rd5 {[%clk 0:00:07]} 62. Rc6+ {[%clk 0:00:17]}  Kg7 {[%clk 0:00:07]} 63. h5 {[%clk 0:00:18]}  Rb5 {[%clk 0:00:07]} 64. f4 {[%clk 0:00:18]}  Ra5 {[%clk 0:00:07]} 65. Kh4 {[%clk 0:00:17]}  Rd5 {[%clk 0:00:07]} 66. g4 {[%clk 0:00:18]}  Rd3 {[%clk 0:00:07]} 67. Kg5 {[%clk 0:00:18]}  Rd5+ {[%clk 0:00:07]} 68. f5 {[%clk 0:00:18]}  Rd7 {[%clk 0:00:07]} 69. h6+ {[%clk 0:00:18]}  Kh7 {[%clk 0:00:08]} 70. Rg6 {[%clk 0:00:19]}  Rd4 {[%clk 0:00:07]} 71. Rg7+ {[%clk 0:00:19]}  Kh8 {[%clk 0:00:07]} 72. Rb7 {[%clk 0:00:19]}  Rd6 {[%clk 0:00:06]} 73. Kh5 {[%clk 0:00:20]}  Rd4 {[%clk 0:00:06]} 74. g5 {[%clk 0:00:20]}  Rd1 {[%clk 0:00:03]} 75. Kg6 {[%clk 0:00:20]}  Rd6+ {[%clk 0:00:03]} 76. f6 {[%clk 0:00:20]}  Rd8 {[%clk 0:00:03]} 77. Rh7+ {[%clk 0:00:20]}  Kg8 {[%clk 0:00:04]} 78. f7+ {[%clk 0:00:21]}  Kf8 {[%clk 0:00:04]} 79. Rh8+ {[%clk 0:00:21]}  Ke7 {[%clk 0:00:05]} 80. Rxd8 {[%clk 0:00:22]} 1-0


[Site "https://www.chess.com"]

[Event "Titled Tuesday Blitz August 09 Late 2022"]
[White "Bortnyk, Olexandr"]
[Black "Livaic, Leon"]
[WhiteFideId "14120828"]
[BlackFideId "14531534"]
[WhiteElo "2723"]
[BlackElo "2540"]
[Result "1/2-1/2"]
[Round "04"]
[TimeControl "180+1"]
[Date "2022.08.09"]
[WhiteClock "0:00:07"]
[BlackClock "0:00:08"]

1. e4 {[%clk 0:03:00]}  e6 {[%clk 0:02:57]} 2. d4 {[%clk 0:03:01]}  d5 {[%clk 0:02:57]} 3. Nc3 {[%clk 0:03:02]}  Nf6 {[%clk 0:02:57]} 4. Bg5 {[%clk 0:03:01]}  Be7 {[%clk 0:02:57]} 5. Bxf6 {[%clk 0:02:59]}  Bxf6 {[%clk 0:02:57]} 6. Nf3 {[%clk 0:03:00]}  O-O {[%clk 0:02:47]} 7. Bd3 {[%clk 0:02:59]}  c5 {[%clk 0:02:44]} 8. dxc5 {[%clk 0:02:59]}  Bxc3+ {[%clk 0:02:38]} 9. bxc3 {[%clk 0:03:00]}  Qa5 {[%clk 0:02:37]} 10. O-O {[%clk 0:02:55]}  Qxc5 {[%clk 0:02:29]} 11. exd5 {[%clk 0:02:55]}  Qxd5 {[%clk 0:02:24]} 12. Rb1 {[%clk 0:02:53]}  g6 {[%clk 0:01:42]} 13. Rb5 {[%clk 0:02:48]}  Qd8 {[%clk 0:01:41]} 14. Qd2 {[%clk 0:02:41]}  Nc6 {[%clk 0:01:34]} 15. Re1 {[%clk 0:02:22]}  Qf6 {[%clk 0:01:34]} 16. h4 {[%clk 0:02:21]}  e5 {[%clk 0:01:27]} 17. h5 {[%clk 0:01:41]}  Re8 {[%clk 0:01:22]} 18. hxg6 {[%clk 0:01:15]}  hxg6 {[%clk 0:01:22]} 19. Qe3 {[%clk 0:01:03]}  Kg7 {[%clk 0:00:49]} 20. Nxe5 {[%clk 0:00:56]}  Rxe5 {[%clk 0:00:40]} 21. Rxe5 {[%clk 0:00:57]}  Qxe5 {[%clk 0:00:41]} 22. Qxe5+ {[%clk 0:00:57]}  Nxe5 {[%clk 0:00:41]} 23. Rxe5 {[%clk 0:00:58]}  Be6 {[%clk 0:00:41]} 24. c4 {[%clk 0:00:57]}  Rc8 {[%clk 0:00:40]} 25. Re4 {[%clk 0:00:57]}  Rc5 {[%clk 0:00:35]} 26. Rd4 {[%clk 0:00:36]}  Ra5 {[%clk 0:00:34]} 27. f4 {[%clk 0:00:34]}  Rxa2 {[%clk 0:00:34]} 28. Kf2 {[%clk 0:00:34]}  a5 {[%clk 0:00:32]} 29. c5 {[%clk 0:00:32]}  Ra3 {[%clk 0:00:24]} 30. Rd6 {[%clk 0:00:22]}  Rc3 {[%clk 0:00:21]} 31. Rb6 {[%clk 0:00:22]}  a4 {[%clk 0:00:09]} 32. Rxb7 {[%clk 0:00:20]}  a3 {[%clk 0:00:10]} 33. Ra7 {[%clk 0:00:16]}  a2 {[%clk 0:00:10]} 34. Ke3 {[%clk 0:00:13]}  Rxc5 {[%clk 0:00:11]} 35. c4 {[%clk 0:00:13]}  Rc7 {[%clk 0:00:05]} 36. Rxa2 {[%clk 0:00:11]}  Bxc4 {[%clk 0:00:04]} 37. Bxc4 {[%clk 0:00:09]}  Rxc4 {[%clk 0:00:05]} 38. Kf3 {[%clk 0:00:07]}  Rc3+ {[%clk 0:00:06]} 39. Kg4 {[%clk 0:00:07]}  f5+ {[%clk 0:00:05]} 40. Kh4 {[%clk 0:00:07]}  Kh6 {[%clk 0:00:06]} 41. Ra8 {[%clk 0:00:06]}  Rc2 {[%clk 0:00:05]} 42. Kh3 {[%clk 0:00:05]}  Rc3+ {[%clk 0:00:06]} 43. g3 {[%clk 0:00:06]}  Rc1 {[%clk 0:00:06]} 44. Ra6 {[%clk 0:00:06]}  Kh5 {[%clk 0:00:05]} 45. Rb6 {[%clk 0:00:04]}  Rh1+ {[%clk 0:00:05]} 46. Kg2 {[%clk 0:00:05]}  Rc1 {[%clk 0:00:06]} 47. Ra6 {[%clk 0:00:05]}  Rc2+ {[%clk 0:00:05]} 48. Kh3 {[%clk 0:00:05]}  Kh6 {[%clk 0:00:06]} 49. Ra8 {[%clk 0:00:05]}  Rc1 {[%clk 0:00:06]} 50. Rh8+ {[%clk 0:00:05]}  Kg7 {[%clk 0:00:07]} 51. Rd8 {[%clk 0:00:06]}  Kh6 {[%clk 0:00:07]} 52. Rh8+ {[%clk 0:00:06]}  Kg7 {[%clk 0:00:08]} 53. Rb8 {[%clk 0:00:06]}  Kh6 {[%clk 0:00:08]} 54. Rg8 {[%clk 0:00:05]}  Kh7 {[%clk 0:00:08]} 55. Rf8 {[%clk 0:00:05]}  Kh6 {[%clk 0:00:08]} 56. Kg2 {[%clk 0:00:05]}  Rc2+ {[%clk 0:00:08]} 57. Kg1 {[%clk 0:00:06]}  Kg7 {[%clk 0:00:09]} 58. Rd8 {[%clk 0:00:05]}  Kh6 {[%clk 0:00:09]} 59. Rd6 {[%clk 0:00:05]}  Kh5 {[%clk 0:00:09]} 60. Kf1 {[%clk 0:00:05]}  Ra2 {[%clk 0:00:08]} 61. Re6 {[%clk 0:00:05]}  Rb2 {[%clk 0:00:08]} 62. Rf6 {[%clk 0:00:04]}  Ra2 {[%clk 0:00:06]} 63. Kg1 {[%clk 0:00:04]}  Rb2 {[%clk 0:00:04]} 64. Rc6 {[%clk 0:00:04]}  Ra2 {[%clk 0:00:04]} 65. Rd6 {[%clk 0:00:04]}  Rb2 {[%clk 0:00:05]} 66. Re6 {[%clk 0:00:04]}  Ra2 {[%clk 0:00:05]} 67. Rb6 {[%clk 0:00:04]}  Rc2 {[%clk 0:00:05]} 68. Kf1 {[%clk 0:00:04]}  Rd2 {[%clk 0:00:05]} 69. Rc6 {[%clk 0:00:04]}  Ra2 {[%clk 0:00:05]} 70. Re6 {[%clk 0:00:04]}  Rb2 {[%clk 0:00:05]} 71. Kg1 {[%clk 0:00:04]}  Ra2 {[%clk 0:00:05]} 72. Kh1 {[%clk 0:00:04]}  Rb2 {[%clk 0:00:02]} 73. Ra6 {[%clk 0:00:04]}  Rc2 {[%clk 0:00:02]} 74. Kg1 {[%clk 0:00:04]}  Rb2 {[%clk 0:00:03]} 75. Kf1 {[%clk 0:00:05]}  Rc2 {[%clk 0:00:03]} 76. Rb6 {[%clk 0:00:04]}  Kg4 {[%clk 0:00:03]} 77. Rxg6+ {[%clk 0:00:04]}  Kf3 {[%clk 0:00:04]} 78. Ke1 {[%clk 0:00:03]}  Rg2 {[%clk 0:00:04]} 79. Rg5 {[%clk 0:00:03]}  Rxg3 {[%clk 0:00:04]} 80. Rxf5 {[%clk 0:00:04]}  Rg4 {[%clk 0:00:04]} 81. Rh5 {[%clk 0:00:03]}  Ke3 {[%clk 0:00:03]} 82. Rh3+ {[%clk 0:00:02]}  Kxf4 {[%clk 0:00:03]} 83. Kf2 {[%clk 0:00:03]}  Kf5 {[%clk 0:00:03]} 84. Rh5+ {[%clk 0:00:03]}  Rg5 {[%clk 0:00:04]} 85. Rh8 {[%clk 0:00:04]}  Rg6 {[%clk 0:00:04]} 86. Ra8 {[%clk 0:00:04]}  Ke6 {[%clk 0:00:04]} 87. Ke3 {[%clk 0:00:04]}  Rg4 {[%clk 0:00:04]} 88. Ra6+ {[%clk 0:00:03]}  Kf5 {[%clk 0:00:05]} 89. Kf3 {[%clk 0:00:04]}  Rc4 {[%clk 0:00:05]} 90. Ra5+ {[%clk 0:00:04]}  Ke6 {[%clk 0:00:05]} 91. Ke3 {[%clk 0:00:05]}  Kd6 {[%clk 0:00:05]} 92. Kd3 {[%clk 0:00:05]}  Rg4 {[%clk 0:00:06]} 93. Ra6+ {[%clk 0:00:05]}  Kd5 {[%clk 0:00:06]} 94. Ra5+ {[%clk 0:00:06]}  Kd6 {[%clk 0:00:07]} 95. Ra6+ {[%clk 0:00:07]}  Kd5 {[%clk 0:00:07]} 96. Ra5+ {[%clk 0:00:07]}  Kd6 {[%clk 0:00:08]} 1/2-1/2


[Site "https://www.chess.com"]

[Event "Titled Tuesday Blitz August 09 Late 2022"]
[White "Csonka, Balazs"]
[Black "Karimov, Alisher"]
[WhiteFideId "742910"]
[BlackFideId "14700280"]
[WhiteElo "2404"]
[BlackElo "2186"]
[Result "1-0"]
[Round "04"]
[TimeControl "180+1"]
[Date "2022.08.09"]
[WhiteClock "0:00:03"]
[BlackClock "0:00:13"]

1. d4 {[%clk 0:03:00]}  Nf6 {[%clk 0:02:58]} 2. c4 {[%clk 0:03:00]}  e6 {[%clk 0:02:58]} 3. g3 {[%clk 0:02:56]}  c5 {[%clk 0:02:54]} 4. Nf3 {[%clk 0:02:55]}  a6 {[%clk 0:02:48]} 5. Bg2 {[%clk 0:02:43]}  cxd4 {[%clk 0:02:44]} 6. Nxd4 {[%clk 0:02:44]}  Qc7 {[%clk 0:02:44]} 7. Nc3 {[%clk 0:02:43]}  d6 {[%clk 0:02:38]} 8. b3 {[%clk 0:02:20]}  Be7 {[%clk 0:02:31]} 9. Bb2 {[%clk 0:02:17]}  O-O {[%clk 0:02:31]} 10. O-O {[%clk 0:02:17]}  Bd7 {[%clk 0:02:31]} 11. Rc1 {[%clk 0:02:17]}  Nc6 {[%clk 0:02:31]} 12. Nd5 {[%clk 0:02:16]}  Qd8 {[%clk 0:02:22]} 13. Nxf6+ {[%clk 0:01:35]}  Bxf6 {[%clk 0:02:17]} 14. Nxc6 {[%clk 0:01:35]}  Bxc6 {[%clk 0:02:15]} 15. Bxf6 {[%clk 0:01:35]}  gxf6 {[%clk 0:02:14]} 16. e4 {[%clk 0:01:23]}  Qa5 {[%clk 0:01:52]} 17. Qxd6 {[%clk 0:00:58]}  Qxa2 {[%clk 0:01:51]} 18. Qd4 {[%clk 0:00:58]}  Kg7 {[%clk 0:01:39]} 19. e5 {[%clk 0:00:49]}  f5 {[%clk 0:01:34]} 20. Bxc6 {[%clk 0:00:40]}  bxc6 {[%clk 0:01:35]} 21. Qe3 {[%clk 0:00:36]}  h6 {[%clk 0:01:28]} 22. Rfd1 {[%clk 0:00:21]}  Rfd8 {[%clk 0:01:26]} 23. Rd6 {[%clk 0:00:20]}  Rdb8 {[%clk 0:00:58]} 24. Rc3 {[%clk 0:00:18]}  c5 {[%clk 0:00:40]} 25. Qf3 {[%clk 0:00:14]}  Ra7 {[%clk 0:00:36]} 26. g4 {[%clk 0:00:13]}  Qb1+ {[%clk 0:00:28]} 27. Kg2 {[%clk 0:00:12]}  fxg4 {[%clk 0:00:24]} 28. Qxg4+ {[%clk 0:00:05]}  Qg6 {[%clk 0:00:24]} 29. Qxg6+ {[%clk 0:00:03]}  Kxg6 {[%clk 0:00:25]} 30. Rf3 {[%clk 0:00:02]}  Rab7 {[%clk 0:00:24]} 31. Rxa6 {[%clk 0:00:02]}  Rxb3 {[%clk 0:00:24]} 32. Rxb3 {[%clk 0:00:01]}  Rxb3 {[%clk 0:00:25]} 33. Ra5 {[%clk 0:00:01]}  h5 {[%clk 0:00:23]} 34. Rxc5 {[%clk 0:00:02]}  h4 {[%clk 0:00:23]} 35. h3 {[%clk 0:00:02]}  Kf5 {[%clk 0:00:23]} 36. Rc7 {[%clk 0:00:03]}  Kg6 {[%clk 0:00:20]} 37. c5 {[%clk 0:00:03]}  Rb5 {[%clk 0:00:19]} 38. Kf3 {[%clk 0:00:02]}  Kf5 {[%clk 0:00:19]} 39. Rxf7+ {[%clk 0:00:03]}  Kxe5 {[%clk 0:00:19]} 40. Rc7 {[%clk 0:00:02]}  Rb4 {[%clk 0:00:19]} 41. c6 {[%clk 0:00:02]}  Kf5 {[%clk 0:00:18]} 42. Rc8 {[%clk 0:00:02]}  Rb3+ {[%clk 0:00:18]} 43. Ke2 {[%clk 0:00:01]}  Rc3 {[%clk 0:00:18]} 44. c7 {[%clk 0:00:01]}  Ke5 {[%clk 0:00:18]} 45. Kd2 {[%clk 0:00:02]}  Rc6 {[%clk 0:00:18]} 46. Kd3 {[%clk 0:00:02]}  Kd6 {[%clk 0:00:17]} 47. Re8 {[%clk 0:00:02]}  Rxc7 {[%clk 0:00:17]} 48. Ke3 {[%clk 0:00:02]}  Ke5 {[%clk 0:00:17]} 49. Kf3 {[%clk 0:00:02]}  Rc4 {[%clk 0:00:17]} 50. Rh8 {[%clk 0:00:02]}  Kf5 {[%clk 0:00:17]} 51. Rh6 {[%clk 0:00:02]}  Kg5 {[%clk 0:00:17]} 52. Rxe6 {[%clk 0:00:02]}  Rf4+ {[%clk 0:00:17]} 53. Kg2 {[%clk 0:00:02]}  Rc4 {[%clk 0:00:17]} 54. Re3 {[%clk 0:00:02]}  Rb4 {[%clk 0:00:17]} 55. Rd3 {[%clk 0:00:02]}  Rc4 {[%clk 0:00:17]} 56. Rd5+ {[%clk 0:00:03]}  Kf4 {[%clk 0:00:17]} 57. Rd8 {[%clk 0:00:02]}  Kg5 {[%clk 0:00:17]} 58. Rg8+ {[%clk 0:00:03]}  Kh5 {[%clk 0:00:17]} 59. Rh8+ {[%clk 0:00:03]}  Kg5 {[%clk 0:00:18]} 60. Re8 {[%clk 0:00:03]}  Kf5 {[%clk 0:00:18]} 61. Kf3 {[%clk 0:00:03]}  Rc3+ {[%clk 0:00:18]} 62. Re3 {[%clk 0:00:03]}  Rc4 {[%clk 0:00:19]} 63. Ra3 {[%clk 0:00:03]}  Kg5 {[%clk 0:00:17]} 64. Ra5+ {[%clk 0:00:02]}  Kg6 {[%clk 0:00:17]} 65. Re5 {[%clk 0:00:02]}  Rc3+ {[%clk 0:00:17]} 66. Kg4 {[%clk 0:00:02]}  Rc4+ {[%clk 0:00:18]} 67. f4 {[%clk 0:00:01]}  Kf6 {[%clk 0:00:18]} 68. Rf5+ {[%clk 0:00:01]}  Kg6 {[%clk 0:00:18]} 69. Rg5+ {[%clk 0:00:02]}  Kf6 {[%clk 0:00:17]} 70. Rh5 {[%clk 0:00:02]}  Rc1 {[%clk 0:00:15]} 71. Rh6+ {[%clk 0:00:03]}  Kg7 {[%clk 0:00:15]} 72. Rxh4 {[%clk 0:00:03]}  Rg1+ {[%clk 0:00:14]} 73. Kf5 {[%clk 0:00:04]}  Kf7 {[%clk 0:00:15]} 74. Rg4 {[%clk 0:00:04]}  Rf1 {[%clk 0:00:15]} 75. h4 {[%clk 0:00:04]}  Rh1 {[%clk 0:00:16]} 76. Kg5 {[%clk 0:00:04]}  Ra1 {[%clk 0:00:15]} 77. h5 {[%clk 0:00:03]}  Ra8 {[%clk 0:00:14]} 78. f5 {[%clk 0:00:03]}  Rg8+ {[%clk 0:00:13]} 79. Kf4 {[%clk 0:00:03]}  Rh8 {[%clk 0:00:13]} 80. Rh4 {[%clk 0:00:04]}  Kf6 {[%clk 0:00:13]} 81. h6 {[%clk 0:00:04]}  Rh7 {[%clk 0:00:12]} 82. Rh5 {[%clk 0:00:04]}  Rh8 {[%clk 0:00:11]} 83. h7 {[%clk 0:00:04]}  Kg7 {[%clk 0:00:12]} 84. Kg5 {[%clk 0:00:04]}  Kf7 {[%clk 0:00:12]} 85. Kh6 {[%clk 0:00:03]}  Kf6 {[%clk 0:00:12]} 86. Rh1 {[%clk 0:00:03]}  Ra8 {[%clk 0:00:12]} 87. Rb1 {[%clk 0:00:02]}  Kf7 {[%clk 0:00:12]} 88. Rb7+ {[%clk 0:00:02]}  Kf6 {[%clk 0:00:12]} 89. Rb6+ {[%clk 0:00:02]}  Kf7 {[%clk 0:00:12]} 90. Rb7+ {[%clk 0:00:01]}  Kf6 {[%clk 0:00:11]} 91. Rc7 {[%clk 0:00:02]}  Kxf5 {[%clk 0:00:11]} 92. Kg7 {[%clk 0:00:02]}  Ra6 {[%clk 0:00:11]} 93. h8=Q {[%clk 0:00:02]}  Rg6+ {[%clk 0:00:12]} 94. Kf8 {[%clk 0:00:02]}  Rg7 {[%clk 0:00:12]} 95. Rf7+ {[%clk 0:00:02]}  Rxf7+ {[%clk 0:00:12]} 96. Kxf7 {[%clk 0:00:03]}  Kg5 {[%clk 0:00:13]} 97. Qf6+ {[%clk 0:00:03]} 1-0


[Site "https://www.chess.com"]